fUST/lending_fUST_20250202
["ID","MTS","AMOUNT","RATE_DAILY","PERIOD"]
[351210418,1738429840469,-815.12,0.00016438,2]
[351210419,1738429840479,-500.0,0.00016438,2]
[351210420,1738429840489,-500.0,0.00016438,2]
[351210421,1738429840499,-809.92,0.00016438,2]
[351210422,1738429840509,-1173.93,0.00016438,2]
[351210423,1738429840519,-500.0,0.00016438,2]
[351210424,1738429840530,-4609.39,0.00016438,2]
[351210425,1738429840543,-500.0,0.00016438,2]
[351210426,1738429840553,-502.60717702,0.00016438,2]
[351210427,1738429840573,-500.0,0.00016438,2]
[351210428,1738429840583,-292.60636989,0.00016438,2]
[351210429,1738429840592,-500.0,0.00016438,2]
[351210430,1738429840602,-500.0,0.00016438,2]
[351210431,1738429840611,-1000.0,0.00016438,7]
[351210432,1738429840620,-500.0,0.00016438,2]
[351210433,1738429840630,-569.87,0.00016438,2]
[351210434,1738429840639,-500.0,0.00016438,2]
[351210435,1738429840648,-500.0,0.00016438,2]
[351210436,1738429840658,-500.0,0.00016438,2]
[351210437,1738429840667,-500.0,0.00016438,2]
[351210438,1738429840677,-500.77,0.00016438,2]
[351210439,1738429840687,-500.0,0.00016438,2]
[351210440,1738429840697,-633.57827246,0.00016438,2]
[351210441,1738429840711,-500.0,0.00016438,2]
[351210442,1738429840721,-500.0,0.00016438,2]
[351210443,1738429840730,-500.0,0.00016438,2]
[351210444,1738429840740,-500.0,0.00016438,2]
[351210445,1738429840750,-183.24347666,0.00016438,2]
[351210446,1738429840763,-500.0,0.00016438,2]
[351210447,1738429840772,-528.79,0.00016438,2]
[351210448,1738429840783,-500.0,0.00016438,2]
[351210449,1738429840794,-500.0,0.00016438,2]
[351210450,1738429840804,-653.04,0.00016438,2]
[351210451,1738429840814,-500.0,0.00016438,2]
[351210452,1738429840823,-500.0,0.00016438,2]
[351210453,1738429840834,-513.0595766,0.00016438,2]
[351210454,1738429840844,-159.88262282,0.00016438,2]
[351210455,1738429840854,-500.0,0.00016438,2]
[351210456,1738429840863,-799.89,0.00016438,2]
[351210457,1738429840873,-500.0,0.00016438,2]
[351210458,1738429840882,-500.0,0.00016438,2]
[351210459,1738429840892,-500.0,0.00016438,2]
[351210460,1738429840901,-500.0,0.00016438,2]
[351210461,1738429840911,-500.0,0.00016438,2]
[351210462,1738429840921,-500.0,0.00016438,2]
[351210463,1738429840930,-500.0,0.00016438,2]
[351210464,1738429840939,-500.0,0.00016438,2]
[351210465,1738429840949,-500.0,0.00016438,2]
[351210466,1738429840960,-500.0,0.00016438,2]
[351210467,1738429840970,-500.0,0.00016438,2]
[351210468,1738429840979,-503.56454569,0.00016438,2]
[351210469,1738429840988,-500.0,0.00016438,2]
[351210470,1738429840998,-500.0,0.00016438,2]
[351210471,1738429841007,-545.79,0.00016438,2]
[351210472,1738429841016,-592.11,0.00016438,2]
[351210473,1738429841025,-500.0,0.00016438,2]
[351210474,1738429841035,-500.0,0.00016438,2]
[351210475,1738429841044,-500.0,0.00016438,2]
[351210476,1738429841053,-500.0,0.00016438,2]
[351210477,1738429841062,-500.0,0.00016438,2]
[351210478,1738429841072,-500.0,0.00016438,2]
[351210479,1738429841081,-922.71,0.00016438,2]
[351210480,1738429841090,-517.97242392,0.00016438,2]
[351210481,1738429841099,-500.0,0.00016438,2]
[351210482,1738429841108,-500.0,0.00016438,2]
[351210483,1738429841117,-500.0,0.00016438,2]
[351210484,1738429841127,-500.0,0.00016438,2]
[351210485,1738429841136,-5365.95,0.00016438,2]
[351210486,1738429841145,-500.0,0.00016438,2]
[351210487,1738429841155,-6723.17242657,0.00016438,2]
[351210488,1738429841173,-5754.42757343,0.00016438,2]
[351210489,1738429841183,-646.18,0.00016438,2]
[351210490,1738429841192,-3786.15,0.00016438,2]
[351210491,1738429841202,-500.0,0.00016438,2]
[351210492,1738429841211,-3000.0,0.0001644,2]
[351210493,1738429841221,-3000.0,0.0001645,2]
[351210494,1738429841230,-3000.0,0.0001646,2]
[351210495,1738429841240,-3000.0,0.0001647,2]
[351210496,1738429841249,-250.71090981,0.00016473,2]
[351210497,1738429841258,-500.0,0.00016473,2]
[351210498,1738429841268,-500.8551011,0.00016473,2]
[351210499,1738429841277,-3000.0,0.0001648,2]
[351210500,1738429841287,-3000.0,0.0001649,2]
[351210501,1738429841296,-165.32434302,0.00016499,2]
[351210502,1738429841305,-500.0,0.00016499,2]
[351210503,1738429841315,-241.00794942,0.00016499,2]
[351210504,1738429841323,-500.0,0.00016499,2]
[351210505,1738429841332,-8631.04,0.000165,2]
[351210506,1738429841341,-9535.52,0.000165,2]
[351210507,1738429841350,-3000.0,0.000165,2]
[351210508,1738429841360,-3000.0,0.0001651,2]
[351210509,1738429841369,-3000.0,0.0001652,2]
[351210510,1738429841379,-3000.0,0.0001653,2]
[351210511,1738429841388,-3000.0,0.0001654,2]
[351210512,1738429841398,-3000.0,0.0001655,2]
[351210513,1738429841407,-3000.0,0.0001656,2]
[351210514,1738429841416,-151.0,0.00016565,2]
[351210515,1738429841426,-3000.0,0.0001657,2]
[351210516,1738429841436,-160.8432302,0.00016573,2]
[351210517,1738429841446,-468.54430557,0.00016573,2]
[351210518,1738429841457,-500.0,0.00016573,2]
[351210519,1738429841467,-500.0,0.00016573,2]
[351210520,1738429841477,-500.0,0.00016573,2]
[351210521,1738429841487,-350.63639339,0.00016573,2]
[351210522,1738429841496,-500.0,0.00016573,2]
[351210523,1738429841505,-500.53544656,0.00016573,2]
[351210524,1738429841515,-500.0,0.00016575,2]
[351210525,1738429841524,-503.90568862,0.00016575,2]
[351210526,1738429841533,-500.0,0.00016575,2]
[351210527,1738429841543,-500.0,0.00016575,2]
[351210528,1738429841553,-500.0,0.00016575,2]
[351210529,1738429841563,-218.97239993,0.00016575,2]
[351210530,1738429841573,-192.125145,0.00016575,2]
[351210531,1738429841582,-532.3899099,0.00016575,2]
[351210532,1738429841592,-500.0,0.00016575,2]
[351210533,1738429841603,-500.0,0.00016575,2]
[351210534,1738429841613,-500.0,0.00016575,2]
[351210535,1738429841623,-500.0,0.00016575,2]
[351210536,1738429841632,-500.0,0.00016575,2]
[351210537,1738429841641,-500.0,0.00016575,2]
[351210538,1738429841650,-500.0,0.00016575,2]
[351210539,1738429841660,-500.0,0.00016575,2]
[351210540,1738429841669,-500.0,0.00016575,2]
[351210541,1738429841678,-500.0,0.00016575,2]
[351210542,1738429841687,-500.0,0.00016575,2]
[351210543,1738429841697,-500.0,0.00016575,2]
[351210544,1738429841706,-500.0,0.00016575,2]
[351210545,1738429841716,-500.0,0.00016575,2]
[351210546,1738429841820,-500.0,0.00016575,2]
[351210547,1738429841830,-506.92400394,0.00016575,2]
[351210548,1738429841841,-500.0,0.00016575,2]
[351210549,1738429841851,-513.86516078,0.00016575,2]
[351210550,1738429841860,-500.0,0.00016575,2]
[351210551,1738429841870,-500.0,0.00016575,2]
[351210552,1738429841880,-500.0,0.00016575,2]
[351210553,1738429841889,-500.0,0.00016575,2]
[351210554,1738429841899,-500.0,0.00016575,2]
[351210555,1738429841908,-928.14,0.00016575,2]
[351210556,1738429841918,-500.0,0.00016575,2]
[351210557,1738429841928,-500.0,0.00016575,2]
[351210558,1738429841938,-500.0,0.00016575,2]
[351210559,1738429841947,-500.0,0.00016575,2]
[351210560,1738429841958,-500.0,0.00016575,2]
[351210561,1738429841967,-500.0,0.00016575,2]
[351210562,1738429841977,-572.97726561,0.00016575,2]
[351210563,1738429841986,-506.84226342,0.00016575,2]
[351210564,1738429841996,-500.0,0.00016575,2]
[351210565,1738429842006,-500.0,0.00016575,2]
[351210566,1738429842016,-500.0,0.00016575,2]
[351210567,1738429842025,-524.39,0.00016575,2]
[351210568,1738429842035,-500.0,0.00016575,2]
[351210569,1738429842045,-274.40048507,0.00016575,2]
[351210570,1738429842207,-225.59951493,0.00016575,2]
[351210571,1738429842217,-406.9954388,0.00016575,2]
[351210572,1738429842226,-500.0,0.00016575,2]
[351210573,1738429842235,-508.90202279,0.00016575,2]
[351210574,1738429842245,-500.0,0.00016575,2]
[351210575,1738429842256,-500.0,0.00016575,2]
[351210576,1738429842266,-500.0,0.00016575,2]
[351210577,1738429842275,-500.0,0.00016575,2]
[351210578,1738429842285,-502.43124892,0.00016575,2]
[351210579,1738429842295,-141.35410644,0.00016575,2]
[351210580,1738429842308,-358.64589356,0.00016575,2]
[351210581,1738429842317,-500.0,0.00016575,2]
[351210582,1738429842327,-395.00340418,0.00016575,2]
[351210583,1738429842340,-104.99659582,0.00016575,2]
[351210584,1738429842350,-593.92219981,0.00016575,2]
[351210585,1738429842359,-500.0,0.00016575,2]
[351210586,1738429842370,-500.0,0.00016575,2]
[351210587,1738429842379,-500.0,0.00016575,2]
[351210588,1738429842388,-500.0,0.00016575,2]
[351210589,1738429842397,-523.50836409,0.00016575,2]
[351210590,1738429842406,-41.17284027,0.00016575,2]
[351210603,1738429844239,-458.82715973,0.00016575,2]
[351210604,1738429844251,-500.0,0.00016575,2]
[351210605,1738429844260,-500.0,0.00016575,2]
[351210606,1738429844270,-500.0,0.00016575,2]
[351210607,1738429844281,-492.18030788,0.00016575,2]
[351210608,1738429844292,-500.0,0.00016575,2]
[351210609,1738429844301,-500.0,0.00016575,2]
[351210610,1738429844310,-221.38,0.00016575,2]
[351210611,1738429844319,-606.38337412,0.00016575,2]
[351210612,1738429844328,-500.0,0.00016575,2]
[351210613,1738429844337,-200.0,0.00016575,2]
[351210614,1738429844347,-500.0,0.00016575,2]
[351210615,1738429844356,-500.0,0.00016575,2]
[351210616,1738429844365,-500.0,0.00016575,2]
[351210617,1738429844374,-500.0,0.00016575,2]
[351210618,1738429844383,-500.0,0.00016575,2]
[351210619,1738429844392,-500.0,0.00016575,2]
[351210620,1738429844401,-500.0,0.00016575,2]
[351210621,1738429844411,-500.0,0.00016575,2]
[351210622,1738429844420,-500.0,0.00016575,2]
[351210623,1738429844429,-500.0,0.00016575,2]
[351210624,1738429844439,-500.0,0.00016575,2]
[351210625,1738429844449,-501.4234529,0.00016575,2]
[351210626,1738429844459,-500.0,0.00016575,2]
[351210627,1738429844469,-500.0,0.00016575,2]
[351210628,1738429844478,-500.0,0.00016575,2]
[351210629,1738429844488,-500.0,0.00016575,2]
[351210630,1738429844497,-500.0,0.00016575,2]
[351210631,1738429844507,-543.74382194,0.00016575,2]
[351210632,1738429844516,-500.0,0.00016575,2]
[351210633,1738429844525,-500.0,0.00016575,2]
[351210634,1738429844534,-500.0,0.00016575,2]
[351210635,1738429844543,-500.0,0.00016575,2]
[351210636,1738429844552,-534.78622591,0.00016575,2]
[351210637,1738429844561,-500.0,0.00016575,2]
[351210638,1738429844571,-500.0,0.00016575,2]
[351210639,1738429844580,-500.0,0.00016575,2]
[351210640,1738429844589,-500.0,0.00016575,2]
[351210641,1738429844599,-500.0,0.00016575,2]
[351210642,1738429844607,-500.0,0.00016575,2]
[351210643,1738429844617,-500.0,0.00016575,2]
[351210644,1738429844626,-504.30442362,0.00016575,2]
[351210645,1738429844636,-501.40004917,0.00016575,2]
[351210646,1738429844645,-500.0,0.00016575,2]
[351210647,1738429844654,-500.0,0.00016575,2]
[351210648,1738429844664,-503.35574741,0.00016575,2]
[351210649,1738429844673,-500.0,0.00016575,2]
[351210650,1738429844683,-500.0,0.00016575,2]
[351210651,1738429844692,-500.0,0.00016575,2]
[351210652,1738429844701,-500.0,0.00016575,2]
[351210653,1738429844711,-500.0,0.00016575,2]
[351210654,1738429844720,-500.0,0.00016575,2]
[351210655,1738429844730,-500.0,0.00016575,2]
[351210656,1738429844739,-350.63062475,0.00016575,2]
[351210657,1738429844755,-149.36937525,0.00016575,2]
[351210658,1738429844767,-500.0,0.00016575,2]
[351210659,1738429844777,-500.0,0.00016575,2]
[351210660,1738429844786,-500.0,0.00016575,2]
[351210661,1738429844796,-500.0,0.00016575,2]
[351210662,1738429844807,-500.0,0.00016575,2]
[351210663,1738429844818,-500.0,0.00016575,2]
[351210664,1738429844828,-500.0,0.00016575,2]
[351210665,1738429844839,-500.0,0.00016575,2]
[351210666,1738429844851,-501.60455373,0.00016575,2]
[351210667,1738429844861,-620.59697866,0.00016575,2]
[351210668,1738429844870,-500.0,0.00016575,2]
[351210669,1738429844882,-500.0,0.00016575,2]
[351210670,1738429844891,-500.0,0.00016575,2]
[351210671,1738429844900,-500.0,0.00016575,2]
[351210672,1738429844909,-500.0,0.00016575,2]
[351210673,1738429844918,-500.0,0.00016575,2]
[351210674,1738429844927,-500.0,0.00016575,2]
[351210675,1738429844937,-500.0,0.00016575,2]
[351210676,1738429844947,-500.0,0.00016575,2]
[351210677,1738429844956,-500.0,0.00016575,2]
[351210678,1738429844967,-500.0,0.00016575,2]
[351210679,1738429844976,-500.0,0.00016575,2]
[351210680,1738429844985,-500.0,0.00016575,2]
[351210681,1738429844994,-500.0,0.00016575,2]
[351210682,1738429845003,-500.0,0.00016575,2]
[351210683,1738429845013,-500.0,0.00016575,2]
[351210684,1738429845023,-500.0,0.00016575,2]
[351210685,1738429845032,-500.0,0.00016575,2]
[351210686,1738429845041,-500.0,0.00016575,2]
[351210687,1738429845051,-500.0,0.00016575,2]
[351210688,1738429845060,-500.0,0.00016575,2]
[351210689,1738429845070,-151.0,0.00016575,2]
[351210690,1738429845079,-151.0,0.00016575,2]
[351210691,1738429845089,-557.96063714,0.00016575,2]
[351210692,1738429845098,-151.0,0.00016575,2]
[351210693,1738429845108,-500.0,0.00016575,2]
[351210694,1738429845118,-500.0,0.00016575,2]
[351210695,1738429845129,-500.0,0.00016575,2]
[351210696,1738429845138,-500.0,0.00016575,2]
[351210697,1738429845148,-500.0,0.00016575,2]
[351210698,1738429845157,-500.0,0.00016575,2]
[351210699,1738429845167,-301.15034146,0.00016575,2]
[351210700,1738429845293,-198.84965854,0.00016575,2]
[351210701,1738429845303,-500.0,0.00016575,2]
[351210702,1738429845312,-500.0,0.00016575,2]
[351210703,1738429845322,-500.0,0.00016575,2]
[351210704,1738429845336,-500.0,0.00016575,2]
[351210705,1738429845345,-258.75034146,0.00016575,2]
[351210715,1738429846227,-241.24965854,0.00016575,2]
[351210716,1738429846238,-518.46479741,0.00016575,2]
[351210717,1738429846249,-500.0,0.00016575,2]
[351210718,1738429846259,-500.0,0.00016575,2]
[351210719,1738429846273,-500.0,0.00016575,2]
[351210720,1738429846282,-500.0,0.00016575,2]
[351210721,1738429846291,-500.0,0.00016575,2]
[351210722,1738429846301,-500.0,0.00016575,2]
[351210723,1738429846315,-500.0,0.00016575,2]
[351210724,1738429846324,-501.40825451,0.00016575,2]
[351210725,1738429846333,-500.0,0.00016575,2]
[351210726,1738429846343,-500.0,0.00016575,2]
[351210727,1738429846352,-500.0,0.00016575,2]
[351210728,1738429846362,-500.0,0.00016575,2]
[351210729,1738429846372,-500.0,0.00016575,2]
[351210730,1738429846381,-612.19,0.00016575,2]
[351210731,1738429846390,-500.0,0.00016575,2]
[351210732,1738429846400,-500.0,0.00016575,2]
[351210733,1738429846409,-500.0,0.00016575,2]
[351210734,1738429846419,-556.26064698,0.00016575,2]
[351210735,1738429846428,-500.0,0.00016575,2]
[351210736,1738429846438,-914.19,0.00016575,2]
[351210737,1738429846447,-500.0,0.00016575,2]
[351210738,1738429846457,-500.0,0.00016575,2]
[351210739,1738429846470,-500.0,0.00016575,2]
[351210740,1738429846479,-500.0,0.00016575,2]
[351210741,1738429846489,-500.0,0.00016575,2]
[351210742,1738429846498,-500.0,0.00016575,2]
[351210743,1738429846508,-500.0,0.00016575,2]
[351210744,1738429846518,-500.0,0.00016575,2]
[351210745,1738429846528,-592.35,0.00016575,2]
[351210746,1738429846537,-500.0,0.00016575,2]
[351210747,1738429846547,-500.0,0.00016575,2]
[351210748,1738429846556,-500.0,0.00016575,2]
[351210749,1738429846566,-546.3,0.00016575,2]
[351210750,1738429846575,-500.0,0.00016575,2]
[351210751,1738429846585,-500.0,0.00016575,2]
[351210752,1738429846595,-500.0,0.00016575,2]
[351210753,1738429846605,-150.11,0.00016575,2]
[351210754,1738429846615,-573.85,0.00016575,2]
[351210755,1738429846625,-150.11,0.00016575,2]
[351210756,1738429846634,-1002.62,0.00016575,2]
[351210757,1738429846644,-500.0,0.00016575,2]
[351210758,1738429846653,-150.11,0.00016575,2]
[351210759,1738429846663,-500.0,0.00016575,2]
[351210760,1738429846672,-150.11,0.00016575,2]
[351210761,1738429846682,-500.0,0.00016575,2]
[351210762,1738429846692,-161.2646572,0.00016575,2]
[351210763,1738429846706,-338.7353428,0.00016575,2]
[351210764,1738429846721,-161.2646572,0.00016575,2]
[351210765,1738429910034,247.926146,0.00013973,2]
[351210769,1738430262652,905.2,0.00013,2]
[351210772,1738430738140,-500.0,0.00015734,2]
[351210773,1738430738161,-155.718,0.0001574,2]
[351210774,1738430738181,-1135.26431571,0.00016,2]
[351210775,1738430738204,-396.0,0.00016306,2]
[351210776,1738430738225,-174.29161901,0.00016338,2]
[351210777,1738430738246,-239.45925178,0.00016338,2]
[351210778,1738430738266,-300.0,0.0001643,2]
[351210779,1738430738288,-10621.491304,0.00016431,2]
[351210780,1738430738310,-500.0,0.00016437,2]
[351210781,1738430738331,-500.0,0.00016437,2]
[351210782,1738430738352,-612.15329562,0.00016437,2]
[351210783,1738430738372,-225.71449698,0.00016438,2]
[351210784,1738430738393,-500.0,0.00016438,2]
[351210785,1738430738412,-568.48766951,0.00016438,2]
[351210786,1738430738432,-500.0,0.00016438,2]
[351210787,1738430738454,-500.0,0.00016438,2]
[351210788,1738430738474,-579.2509459,0.00016438,2]
[351210789,1738430738494,-500.0,0.00016438,2]
[351210790,1738430738515,-500.0,0.00016438,2]
[351210791,1738430738535,-500.0,0.00016438,2]
[351210792,1738430738556,-500.0,0.00016438,2]
[351210793,1738430738577,-500.0,0.00016438,2]
[351210794,1738430738598,-500.0,0.00016438,2]
[351210795,1738430738619,-500.0,0.00016438,2]
[351210796,1738430738639,-500.0,0.00016438,2]
[351210797,1738430738659,-316.05026394,0.00016438,2]
[351210798,1738430738679,-364.51767264,0.00016438,2]
[351210799,1738430738699,-228.77619763,0.00016438,2]
[351210800,1738430738719,-500.0,0.00016438,2]
[351210801,1738430738740,-198.83395779,0.00016438,2]
[351210802,1738430738760,-641.16593298,0.00016438,2]
[351210803,1738430738781,-503.61152882,0.00016438,2]
[351210804,1738430738801,-500.0,0.00016438,2]
[351210805,1738430738821,-500.0,0.00016438,2]
[351210806,1738430738843,-500.0,0.00016438,2]
[351210807,1738430738863,-500.0,0.00016438,2]
[351210808,1738430738884,-500.0,0.00016438,2]
[351210809,1738430738906,-502.69622508,0.00016438,2]
[351210810,1738430738927,-500.0,0.00016438,2]
[351210811,1738430738947,-353.88453034,0.00016438,2]
[351210812,1738430738969,-582.01,0.00016438,2]
[351210813,1738430738989,-500.0,0.00016438,2]
[351210814,1738430739011,-500.0,0.00016438,2]
[351210815,1738430739037,-500.0,0.00016438,2]
[351210816,1738430739058,-838.01,0.00016438,2]
[351210817,1738430739080,-509.89494852,0.00016438,2]
[351210818,1738430739100,-514.32480114,0.00016438,2]
[351210819,1738430739122,-500.0,0.00016438,2]
[351210820,1738430739264,-850.8,0.00016438,2]
[351210821,1738430739285,-500.0,0.00016438,2]
[351210822,1738430739305,-566.35461217,0.00016438,2]
[351210823,1738430739324,-500.0,0.00016438,2]
[351210824,1738430739345,-500.0,0.00016438,2]
[351210825,1738430739365,-500.0,0.00016438,2]
[351210826,1738430739386,-266.4482356,0.00016438,2]
[351210827,1738430739405,-500.0,0.00016438,2]
[351210828,1738430739425,-500.0,0.00016438,2]
[351210829,1738430739444,-500.0,0.00016438,2]
[351210830,1738430739464,-500.0,0.00016438,2]
[351210831,1738430739484,-500.0,0.00016438,2]
[351210832,1738430739504,-500.0,0.00016438,2]
[351210833,1738430739523,-500.0,0.00016438,2]
[351210834,1738430739542,-500.0,0.00016438,2]
[351210835,1738430739562,-500.0,0.00016438,2]
[351210836,1738430739582,-500.0,0.00016438,2]
[351210837,1738430739602,-500.0,0.00016438,2]
[351210838,1738430739622,-500.0,0.00016438,2]
[351210839,1738430739641,-500.0,0.00016438,2]
[351210840,1738430739661,-500.0,0.00016438,2]
[351210841,1738430739681,-221.58010339,0.00016438,2]
[351210842,1738430739701,-500.0,0.00016438,2]
[351210843,1738430739721,-500.0,0.00016438,2]
[351210844,1738430739742,-500.0,0.00016438,2]
[351210845,1738430739762,-500.0,0.00016438,2]
[351210846,1738430739782,-500.0,0.00016438,2]
[351210847,1738430739801,-500.0,0.00016438,2]
[351210848,1738430739822,-500.0,0.00016438,2]
[351210849,1738430739842,-500.0,0.00016438,2]
[351210850,1738430739865,-500.0,0.00016438,2]
[351210851,1738430739886,-500.0,0.00016438,2]
[351210852,1738430739907,-544.43827916,0.00016438,2]
[351210853,1738430739928,-203.70760921,0.00016438,2]
[351210854,1738430739948,-500.0,0.00016438,2]
[351210855,1738430739970,-500.0,0.00016438,2]
[351210856,1738430739990,-522.18015111,0.00016438,2]
[351210857,1738430740010,-362.32917678,0.00016438,2]
[351210858,1738430740035,-500.0,0.00016438,2]
[351210859,1738430740056,-500.0,0.00016438,2]
[351210860,1738430740079,-500.0,0.00016438,2]
[351210861,1738430740102,-500.0,0.00016438,2]
[351210862,1738430740127,-500.0,0.00016438,2]
[351210863,1738430740148,-500.0,0.00016438,2]
[351210864,1738430740169,-500.0,0.00016438,2]
[351210865,1738430740190,-500.0,0.00016438,2]
[351210866,1738430740211,-500.0,0.00016438,2]
[351210867,1738430740233,-500.0,0.00016438,2]
[351210868,1738430740255,-500.0,0.00016438,2]
[351210869,1738430740275,-500.0,0.00016438,2]
[351210870,1738430740295,-500.0,0.00016438,2]
[351210871,1738430740314,-335.53491722,0.00016438,2]
[351210872,1738430740334,-500.0,0.00016438,2]
[351210873,1738430740354,-500.0,0.00016438,2]
[351210874,1738430740376,-321.18157943,0.00016438,2]
[351210875,1738430740400,-500.0,0.00016438,2]
[351210876,1738430740421,-500.0,0.00016438,2]
[351210877,1738430740441,-500.0,0.00016438,2]
[351210878,1738430740462,-500.0,0.00016438,2]
[351210879,1738430740483,-500.0,0.00016438,2]
[351210880,1738430740504,-500.0,0.00016438,2]
[351210881,1738430740524,-500.0,0.00016438,2]
[351210882,1738430740545,-500.0,0.00016438,2]
[351210883,1738430740567,-500.0,0.00016438,2]
[351210884,1738430740587,-500.0,0.00016438,2]
[351210885,1738430740608,-500.0,0.00016438,2]
[351210886,1738430740629,-500.0,0.00016438,2]
[351210887,1738430740650,-500.0,0.00016438,2]
[351210888,1738430740669,-500.0,0.00016438,2]
[351210889,1738430740689,-362.83214186,0.00016438,2]
[351210890,1738430740710,-500.0,0.00016438,2]
[351210891,1738430740730,-500.0,0.00016438,2]
[351210892,1738430740750,-500.0,0.00016438,2]
[351210893,1738430740770,-500.0,0.00016438,2]
[351210894,1738430740791,-500.0,0.00016438,2]
[351210895,1738430740811,-500.0,0.00016438,2]
[351210896,1738430740830,-500.0,0.00016438,2]
[351210897,1738430740850,-500.0,0.00016438,2]
[351210898,1738430740870,-500.0,0.00016438,2]
[351210899,1738430740892,-500.0,0.00016438,2]
[351210900,1738430740913,-500.0,0.00016438,2]
[351210901,1738430740936,-500.0,0.00016438,2]
[351210902,1738430740958,-500.0,0.00016438,2]
[351210903,1738430740980,-500.0,0.00016438,2]
[351210904,1738430741002,-500.0,0.00016438,2]
[351210905,1738430741023,-500.0,0.00016438,2]
[351210906,1738430741048,-500.0,0.00016438,2]
[351210907,1738430741070,-500.0,0.00016438,2]
[351210908,1738430741093,-500.0,0.00016438,2]
[351210909,1738430741117,-500.0,0.00016438,2]
[351210910,1738430741141,-500.0,0.00016438,2]
[351210911,1738430741163,-503.94343496,0.00016438,2]
[351210912,1738430741184,-500.0,0.00016438,2]
[351210913,1738430741206,-500.0,0.00016438,2]
[351210914,1738430741227,-500.0,0.00016438,2]
[351210915,1738430741249,-500.0,0.00016438,2]
[351210916,1738430741269,-500.0,0.00016438,2]
[351210917,1738430741291,-500.0,0.00016438,2]
[351210918,1738430741313,-500.0,0.00016438,2]
[351210919,1738430741336,-500.0,0.00016438,2]
[351210920,1738430741358,-500.0,0.00016438,2]
[351210921,1738430741380,-500.0,0.00016438,2]
[351210922,1738430741402,-500.0,0.00016438,2]
[351210923,1738430741424,-500.0,0.00016438,2]
[351210924,1738430741448,-611.15,0.00016438,2]
[351210925,1738430741470,-500.0,0.00016438,2]
[351210926,1738430741490,-126.62970335,0.00016438,2]
[351210927,1738430751141,-373.37029665,0.00016438,2]
[351210928,1738430751163,-500.0,0.00016438,2]
[351210929,1738430751185,-500.0,0.00016438,2]
[351210930,1738430751206,-535.25,0.00016438,2]
[351210931,1738430751227,-500.0,0.00016438,2]
[351210932,1738430751247,-500.0,0.00016438,2]
[351210933,1738430751271,-500.0,0.00016438,2]
[351210934,1738430751292,-925.93,0.00016438,2]
[351210935,1738430751314,-500.0,0.00016438,2]
[351210936,1738430751336,-500.0,0.00016438,2]
[351210937,1738430751357,-500.0,0.00016438,2]
[351210938,1738430751380,-500.0,0.00016438,2]
[351210939,1738430751401,-2668.51039703,0.00016438,2]
[351210941,1738430775146,182.650086,0.00013699,2]
[351210942,1738430786873,243.408346,0.00013973,2]
[351210944,1738430843130,-500.0,0.00015734,2]
[351210945,1738430843151,-300.0,0.00016437,2]